bitfinex/quotes_ETHUSD_20241001
["timestamp","ask_amount","ask_price","bid_price","bid_amount"]
[1727800172181,2.348956,2517.7,2517.1,6.97274]
[1727800172761,2.348956,2517.7,2517.3,3.0]
[1727800173008,19.518,2517.8,2517.5,3.9721]
[1727800173164,1.5527,2518.0,2517.5,3.9721]
[1727800173607,1.5527,2518.0,2517.6,3.97196]
[1727800173796,1.5094,2518.3,2517.6,3.9719]
[1727800174122,1.5094,2518.3,2517.9,3.97148]
[1727800174266,1.5094,2518.3,2517.8,3.97164]
[1727800174267,0.0216807,2518.6,2518.2,3.97106]
[1727800174464,0.0216807,2518.6,2518.3,3.97085]
[1727800174669,0.0216807,2518.6,2518.2,3.97106]
[1727800175096,0.0216807,2518.6,2518.0,6.97131]
[1727800175301,0.0216807,2518.6,2518.1,3.9711]
[1727800175509,0.0216807,2518.6,2518.2,3.0]
[1727800176068,0.0216807,2518.6,2518.2,6.97099]
[1727800176325,0.0216807,2518.6,2518.2,3.0]
[1727800176501,0.0216807,2518.6,2518.5,3.97061]
[1727800176669,0.0216807,2518.6,2518.5,6.97061]
[1727800176870,0.0216807,2518.6,2518.3,3.97089]
[1727800177103,0.0216807,2518.6,2518.4,3.0]
[1727800178194,0.0216807,2518.6,2518.3,3.9708]
[1727800178195,0.0216807,2518.6,2518.5,3.0]
[1727800178592,0.0216807,2518.6,2518.4,6.97069]
[1727800179505,0.0216807,2518.6,2518.4,3.0]
[1727800179914,0.0216807,2518.6,2518.5,6.97061]
[1727800180312,0.0216807,2518.6,2518.5,7.52061]
[1727800180690,0.0216807,2518.6,2518.5,3.55]
[1727800181089,0.0216807,2518.6,2518.5,3.0]
[1727800181331,0.0216807,2518.6,2518.3,3.0]
[1727800181629,0.0216807,2518.6,2518.5,6.97061]
[1727800183135,0.0216807,2518.6,2518.5,7.52061]
[1727800184595,21.1171,2519.5,2518.5,9.09151]
[1727800184798,1.5991,2519.5,2518.9,3.55]
[1727800185026,1.5991,2519.5,2519.1,0.55]
[1727800185191,1.5991,2519.8,2519.2,4.04867344]
[1727800185522,1.5991,2519.8,2519.5,3.96899]
[1727800185731,1.5853,2520.2,2519.6,0.07926707]
[1727800185889,1.5853,2520.2,2519.3,3.55]
[1727800185890,0.099206,2520.1,2519.3,3.55]
[1727800186095,0.6644366,2520.1,2519.4,3.96919]
[1727800186491,0.6644366,2520.1,2519.4,3.96908]
[1727800186739,0.099206,2520.1,2519.5,3.96898]
[1727800187249,1.5853,2520.2,2519.3,3.55]
[1727800187250,1.5853,2520.2,2519.6,3.96874]
[1727800187882,1.5853,2520.2,2519.7,3.0]
[1727800188042,1.5853,2520.2,2519.8,0.55]
[1727800188335,1.5853,2520.2,2519.6,3.0]
[1727800188495,1.5853,2520.2,2519.7,3.96872]
[1727800189044,1.5853,2520.2,2519.4,3.0]
[1727800189445,1.5853,2520.2,2519.5,3.96894]
[1727800189596,2.140594,2520.2,2519.5,3.96894]
[1727800189802,2.140594,2520.2,2519.8,3.96852]
[1727800189803,1.5853,2520.2,2519.8,3.96852]
[1727800190025,1.5853,2520.2,2519.7,3.96857]
[1727800190341,1.5853,2520.2,2519.9,3.96838]
[1727800190512,20.0354,2520.6,2519.9,3.96838]
[1727800190513,21.093,2520.5,2520.1,3.96806]
[1727800191042,21.093,2520.5,2520.0,6.96823]
[1727800191203,21.093,2520.5,2520.1,3.96807]
[1727800191746,21.093,2520.5,2520.2,3.0]
[1727800192044,1.575,2520.5,2520.2,3.0]
[1727800192198,1.575,2520.5,2520.1,0.55]
[1727800193232,1.88342333,2520.5,2519.2,1.5081]
[1727800193409,1.88342333,2520.5,2519.8,3.0]
[1727800193410,25.36898333,2520.5,2519.8,3.0]
[1727800193609,21.30224,2520.5,2519.7,3.0]
[1727800193814,21.30224,2520.5,2519.9,3.0]
[1727800194050,19.518,2520.4,2519.9,3.0]
[1727800194340,19.518,2520.4,2519.7,3.0]
[1727800194341,26.064397,2520.4,2519.7,3.0]
[1727800194504,22.096697,2520.4,2519.7,6.96859]
[1727800194836,22.096697,2520.4,2519.6,3.96874]
[1727800195046,22.096697,2520.4,2519.7,0.55]
[1727800195342,22.096697,2520.4,2519.8,3.96847]
[1727800195567,5.67987044,2520.3,2519.6,3.9688]
[1727800195729,5.67987044,2520.3,2519.5,3.96903]
[1727800195929,3.96794,2520.2,2519.5,3.96903]
[1727800196237,1.71201044,2520.3,2519.4,3.96904]
[1727800196435,6.34889074,2520.2,2519.4,3.96904]
[1727800196665,2.48007675,2520.2,2519.5,3.96901]
[1727800196869,6.44804675,2520.2,2519.5,3.96901]
[1727800198134,2.48007675,2520.2,2519.5,3.96901]
[1727800198768,25.96609675,2520.2,2519.4,3.96919]
[1727800198974,3.15467335,2520.1,2519.4,3.96919]
[1727800199273,3.15467335,2520.1,2519.4,7.93824]
[1727800199454,3.15467335,2520.1,2519.4,7.93816]
[1727800199864,3.15467335,2520.1,2519.4,3.96905]
[1727800200066,3.15467335,2520.1,2519.2,3.0]
[1727800200067,3.9686,2519.8,2519.2,3.0]
[1727800200394,3.96905,2519.5,2518.8,3.97005]
[1727800200527,0.09923628,2519.4,2517.8,1.5349]
[1727800200729,19.518,2519.3,2519.0,3.96979]
[1727800200981,1.6112,2519.6,2519.4,3.96911]
[1727800201325,1.6112,2519.6,2519.1,3.96961]
[1727800201566,1.6112,2519.6,2519.1,3.96951]
[1727800201883,1.6112,2519.6,2519.2,3.0]
[1727800202182,1.6112,2519.6,2518.9,0.55]
[1727800202183,6.14808082,2519.6,2518.9,0.55]
[1727800202333,6.24730992,2519.6,2518.4,1.6159]
[1727800202528,3.96904,2519.5,2518.8,3.97013]
[1727800202731,21.69710082,2519.6,2518.6,3.97042]
[1727800202974,21.1292,2519.6,2519.2,3.96937]
[1727800203180,1.6112,2519.6,2519.3,3.96934]
[1727800203470,1.5186,2520.0,2519.5,3.96904]
[1727800203671,1.5186,2520.0,2519.6,3.96886]
[1727800203874,19.518,2520.3,2519.8,3.96855]
[1727800204170,19.518,2520.2,2519.6,6.96875]
[1727800204370,19.518,2520.2,2519.9,3.96833]
[1727800204547,19.518,2520.2,2519.7,4.5186]
[1727800204745,19.518,2520.2,2519.8,3.96856]
[1727800204942,19.518,2520.2,2519.7,0.55]
[1727800205172,19.518,2520.2,2519.6,3.55]
[1727800205380,19.518,2520.2,2519.7,3.96859]
[1727800205569,19.518,2520.2,2519.6,3.55]
[1727800205772,4.06729865,2520.1,2519.4,0.55]
[1727800205939,25.986462,2520.2,2519.5,3.96893]
[1727800205940,22.018422,2520.2,2519.5,3.96893]
[1727800206285,19.518,2520.2,2519.9,3.9683]
[1727800206437,19.518,2520.2,2519.4,6.96909]
[1727800206635,19.518,2520.2,2519.7,3.55]
[1727800206840,3.96821,2520.1,2519.4,6.96909]
[1727800207062,0.09920797,2520.1,2519.4,3.0]
[1727800207279,0.09920797,2520.1,2518.6,3.97031]
[1727800207280,1.5005,2519.9,2518.7,5.56793]
[1727800207482,19.518,2519.8,2519.1,3.96957]
[1727800207679,19.518,2519.8,2519.0,3.96978]
[1727800208083,19.518,2519.8,2518.7,5.56798]
[1727800208084,3.96896,2519.6,2518.8,3.97005]
[1727800208280,5.46966,2519.5,2518.8,3.97005]
[1727800208489,5.56888934,2519.5,2518.8,3.97005]
[1727800208797,5.56888934,2519.5,2518.8,3.97003]
[1727800208940,3.96933,2519.4,2518.7,3.97027]
[1727800209288,25.94132493,2519.5,2518.9,3.0]
[1727800209492,4.06855368,2519.4,2518.9,3.0]
[1727800209691,3.96959,2519.2,2518.5,3.0]
[1727800209844,1.6011,2519.1,2518.2,3.971]
[1727800210195,3.96999,2518.9,2518.2,3.97101]
[1727800210358,4.06914109,2519.0,2518.4,3.97075]
[1727800210619,21.1191,2519.1,2518.4,3.97068]
[1727800210792,19.518,2519.1,2518.4,0.397068]
[1727800210992,19.518,2519.1,2518.9,3.9699]
[1727800211220,1.5149,2519.4,2519.0,3.0]
[1727800211446,1.5149,2519.4,2519.1,4.04891855]
[1727800211759,1.5149,2519.4,2519.0,3.0]
[1727800211760,1.5149,2519.9,2519.3,6.96934]
[1727800211964,8.95728668,2519.9,2519.3,3.0]
[1727800212434,3.96859,2519.8,2519.3,3.0]
[1727800212595,4.98886668,2519.9,2519.3,3.0]
[1727800212795,9.05649116,2519.9,2519.3,3.0]
[1727800213003,8.95727668,2519.9,2519.3,3.0]
[1727800213195,8.95727668,2519.9,2519.3,6.96927]
[1727800213196,4.98886668,2519.9,2519.3,6.96927]
[1727800213397,1.5149,2519.9,2519.4,3.96905]
[1727800213799,1.5149,2519.9,2519.4,7.93816]
[1727800214000,1.5149,2519.9,2519.4,3.96905]
[1727800214262,1.5149,2519.9,2519.3,3.0]
[1727800214562,5.5826601,2519.9,2519.3,3.0]
[1727800214787,5.5826601,2519.9,2518.7,1.5235]
[1727800214788,0.67988145,2519.8,2519.1,3.0]
[1727800214930,1.5688,2519.3,2518.8,3.97006]
[1727800215135,1.5688,2519.3,2518.7,3.9703]
[1727800215333,1.5688,2519.3,2518.8,3.9701]
[1727800215963,1.5688,2519.3,2518.9,3.96996]
[1727800216287,1.5688,2519.6,2519.1,3.96953]
[1727800216568,1.5688,2519.6,2519.2,4.04880992]
[1727800217140,20.30936966,2519.8,2519.4,3.96912]
[1727800217141,0.79136966,2519.8,2519.4,3.96912]
[1727800217468,2.78550662,2519.9,2519.4,3.96912]
[1727800217469,2.39696966,2519.9,2519.4,3.96912]
[1727800217679,2.39696966,2519.9,2519.1,0.55]
[1727800217680,0.09921432,2519.8,2519.1,0.55]
[1727800218025,6.73715558,2519.8,2519.2,3.96949]
[1727800218168,9.15850149,2519.8,2519.1,7.51966]
[1727800218345,0.89005618,2519.7,2518.9,3.0]
[1727800218552,0.79081708,2519.6,2519.1,3.0]
[1727800218877,4.8594173,2519.7,2519.0,3.96978]
[1727800218878,3.96911,2519.5,2519.0,3.0]
[1727800219065,3.96911,2519.5,2518.7,4.52017]
[1727800219066,3.96928,2519.4,2518.7,8.49039]
[1727800219235,6.35075966,2519.6,2518.9,3.96985]
[1727800219429,6.35075966,2519.6,2518.7,0.55]
[1727800219430,3.01239904,2519.6,2519.1,3.96965]
[1727800219666,3.01239904,2519.6,2519.0,0.55]
[1727800219667,1.5905,2519.6,2519.0,0.55]
[1727800219869,5.55946,2519.6,2519.0,0.55]
[1727800220172,6.35082966,2519.6,2519.0,0.55]
[1727800220487,25.07739,2519.6,2519.0,0.55]
[1727800220833,4.85889959,2519.5,2518.8,3.0]
[1727800221040,3.96935,2519.3,2518.8,3.0]
[1727800221389,3.96935,2519.3,2518.5,3.97056]
[1727800221390,3.96935,2519.3,2518.6,6.97045]
[1727800221537,3.96967,2519.1,2518.6,3.0]
[1727800221735,0.09923506,2519.3,2518.2,1.5816]
[1727800221736,3.9701,2518.9,2518.2,3.97097]
[1727800221977,20.06732,2518.9,2518.3,3.97092]
[1727800222146,20.06732,2518.9,2518.5,3.97046]
[1727800222147,19.518,2518.9,2518.5,3.97046]
[1727800222550,19.518,2518.9,2517.9,2.132262]
[1727800222738,19.518,2518.9,2518.3,3.97081]
[1727800223081,5.49294,2519.0,2517.9,2.132262]
[1727800223082,0.09925045,2518.8,2517.9,2.132262]
[1727800223287,0.09925045,2518.8,2517.8,0.85836589]
[1727800223288,21.92986966,2518.7,2517.8,0.85836589]
[1727800223579,3.97078,2518.4,2517.8,4.83006589]
[1727800223746,4.76197966,2518.5,2517.8,4.83006589]
[1727800224104,0.79030044,2518.4,2517.8,4.83006589]
[1727800224269,0.89064466,2518.5,2517.8,0.85836589]
[1727800224270,4.86133466,2518.5,2517.8,0.85836589]
[1727800224437,2.7667428,2518.4,2517.9,3.0]
[1727800224782,3.97099,2518.3,2517.8,0.85836589]
[1727800224933,1.5632,2518.1,2517.8,0.85836589]
[1727800225371,2.35456966,2518.4,2517.9,4.05095479]
[1727800225611,1.5632,2518.4,2518.0,3.97131]
[1727800225816,19.518,2518.5,2518.1,3.97111]
[1727800226413,19.518,2518.5,2518.2,3.97105]
[1727800226723,19.518,2518.5,2518.1,3.0]
[1727800226873,19.518,2518.5,2518.0,0.55]
[1727800227072,19.518,2518.5,2517.8,0.85836589]
[1727800227073,0.09926407,2518.4,2517.8,0.85836589]
[1727800227273,5.62381,2518.0,2517.8,0.85836589]
[1727800227594,1.6523,2518.0,2517.8,0.85836589]
[1727800227794,3.97156,2517.9,2517.8,0.85836589]
[1727800227993,4.07085922,2517.9,2517.8,0.85836589]
[1727800228413,25.24115922,2517.9,2517.8,0.85836589]
[1727800228623,25.24115922,2517.9,2516.8,3.97327]
[1727800228624,1.5229,2517.4,2516.8,3.97327]
[1727800228908,1.5229,2517.4,2515.6,5.97511]
[1727800228909,25.11258409,2517.4,2516.4,3.97389]
[1727800229114,3.97277,2517.2,2516.5,0.397389]
[1727800229334,0.09932274,2517.1,2516.4,3.97382]
[1727800229617,19.518,2517.3,2516.8,3.97328]
[1727800229825,19.518,2517.3,2516.9,0.07945178]
[1727800229969,19.518,2517.3,2516.4,3.97382]
[1727800229970,19.518,2517.3,2516.6,3.97351]
[1727800230175,19.518,2517.3,2516.6,3.97349]
[1727800230401,19.518,2517.3,2516.8,3.97319]
[1727800230622,19.518,2517.3,2516.9,0.07608063]
[1727800230926,19.518,2517.3,2516.8,3.97319]
[1727800231125,19.518,2517.3,2517.0,3.97297]
[1727800231421,19.518,2517.3,2517.0,3.97286]
[1727800231624,19.518,2517.3,2517.0,0.40523102]
[1727800231785,19.518,2517.3,2517.2,3.97266]
[1727800231982,3.0,2518.1,2517.6,3.97191]
[1727800231983,19.518,2517.9,2517.6,3.97191]
[1727800232229,4.88643679,2518.5,2517.8,0.55]
[1727800232230,21.1142,2518.4,2517.8,0.55]
[1727800232410,21.1142,2518.4,2517.9,0.07941799]
[1727800232581,21.1142,2518.4,2517.9,3.0]
[1727800232787,3.9702,2518.8,2518.2,3.97107]
[1727800232788,19.518,2518.8,2518.2,3.97107]
[1727800232981,21.0955,2518.8,2518.2,3.971]
[1727800233216,0.81799276,2519.3,2518.6,3.97035]
[1727800233465,1.5775,2519.2,2518.8,3.97013]
[1727800233617,1.5775,2519.2,2518.9,3.96995]
[1727800233966,5.65195282,2519.6,2519.0,0.02465793]
[1727800234272,2.54586128,2519.6,2519.0,0.02465793]
[1727800234557,6.51484128,2519.6,2519.0,0.02465793]
[1727800234761,6.51484128,2519.6,2519.0,0.55]
[1727800234762,1.5838,2519.6,2519.0,0.55]
[1727800235129,3.9683,2520.0,2519.4,3.96919]
[1727800235130,0.09921944,2520.0,2519.4,3.96919]
[1727800235317,5.55008,2520.1,2519.5,3.969]
[1727800235318,1.5819,2520.1,2519.5,3.969]
[1727800235666,5.51776,2520.5,2519.8,3.0]
[1727800235825,0.09919534,2520.4,2519.6,0.55]
[1727800236019,3.96794,2520.2,2519.4,3.0]
[1727800236221,0.09920835,2520.1,2519.5,3.969]
[1727800236446,0.09920835,2520.1,2519.4,3.0]
[1727800236447,4.06731835,2520.1,2519.4,3.0]
[1727800236643,0.90273419,2520.1,2519.2,4.5358]
[1727800236874,1.76251192,2520.4,2519.7,3.96863]
[1727800237049,1.6633,2520.4,2519.9,3.9684]
[1727800237268,1.6633,2520.4,2519.8,3.0]
[1727800237470,1.6633,2520.4,2519.9,3.96827]
[1727800237684,4.48483,2520.6,2519.9,3.96827]
[1727800237685,0.5174,2520.6,2519.9,3.96827]
[1727800237960,0.5174,2520.6,2519.8,3.0]
[1727800237961,0.09918909,2520.5,2519.8,3.0]
[1727800238419,0.09918909,2520.5,2519.8,6.96854]
[1727800238841,4.06678909,2520.5,2519.8,3.0]
[1727800239256,1.24128557,2520.6,2519.9,0.55]
[1727800239458,1.24128557,2520.6,2519.6,3.0]
[1727800239459,3.96778,2520.3,2519.6,3.0]
[1727800239672,4.06674669,2520.5,2519.7,3.96857]
[1727800239825,4.06674669,2520.5,2519.9,3.9684]
[1727800240226,0.09919669,2520.5,2519.9,7.68671]
[1727800240421,0.5174,2520.6,2519.9,7.68671]
[1727800240422,0.5174,2520.6,2520.0,3.55]
[1727800240694,0.5174,2520.6,2520.5,3.96746]
[1727800241492,0.5174,2520.6,2520.5,4.51746]
[1727800242358,0.5174,2520.6,2520.4,3.9675]
[1727800242555,0.5174,2520.6,2520.5,3.96746]
[1727800242798,0.5174,2520.6,2520.5,4.51746]
[1727800242956,0.5174,2520.6,2520.5,8.06980888]
[1727800243795,0.5174,2520.6,2520.5,12.05229888]
[1727800244375,0.5174,2520.6,2520.5,9.65670888]
[1727800244582,0.5174,2520.6,2520.5,12.43597188]
[1727800244859,0.5174,2520.6,2520.5,9.65670888]
[1727800245286,0.5174,2520.6,2520.5,9.10436]
[1727800245492,0.5174,2520.6,2520.5,6.96746]
[1727800246894,0.5174,2520.6,2520.5,7.51746]
[1727800247978,0.5174,2520.6,2520.5,9.03706]
[1727800248207,0.5174,2520.6,2520.5,22.64103]
[1727800248606,0.5174,2520.6,2520.5,19.238225]
[1727800249000,0.5174,2520.6,2520.5,14.664859]
[1727800251737,0.23240001,2520.6,2520.5,14.664859]
[1727800252740,0.23240001,2520.6,2520.5,14.45189]
[1727800253337,0.23240001,2520.6,2520.5,8.05116]
[1727800253627,0.23240001,2520.6,2520.5,3.96746]
[1727800253829,0.23240001,2520.6,2520.5,6.34456]
[1727800254037,0.23240001,2520.6,2520.5,11.801766]
[1727800254191,0.23240001,2520.6,2520.5,3.96746]
[1727800254392,0.23240001,2520.6,2520.1,3.96803]
[1727800254393,1.82410001,2520.6,2520.1,3.96801]
[1727800254598,1.92328859,2520.6,2520.0,3.96815]
[1727800255001,1.92328859,2520.6,2519.8,3.96848]
[1727800255204,21.44128859,2520.6,2519.8,7.93696]
[1727800255451,3.96763,2520.4,2519.8,3.96848]
[1727800255642,2.64005141,2520.5,2520.0,3.9682]
[1727800255867,2.64005141,2520.5,2519.9,3.9683]
[1727800256245,2.64005141,2520.5,2519.7,3.96858]
[1727800256451,3.96771,2520.4,2519.7,3.96858]
[1727800256624,6.60762141,2520.5,2519.8,3.96856]
[1727800256821,2.64005141,2520.5,2519.8,3.96856]
[1727800257027,21.34210001,2520.6,2520.1,3.96806]
[1727800257865,19.75040001,2520.6,2520.4,3.96752]
[1727800258068,0.23240001,2520.6,2520.2,3.96779]
[1727800258230,0.23240001,2520.6,2520.1,3.0]
[1727800258559,0.23240001,2520.6,2520.1,6.96806]
[1727800258724,0.23240001,2520.6,2520.2,3.96792]
[1727800259362,0.23240001,2520.6,2520.2,1.093608]
[1727800259585,0.23240001,2520.6,2520.4,3.96749]
[1727800260282,0.23240001,2520.6,2520.5,3.96746]
[1727800260854,0.23240001,2520.6,2520.2,3.0]
[1727800260855,0.23240001,2520.6,2520.2,3.96785]
[1727800261154,0.23240001,2520.6,2520.5,3.96746]
[1727800261355,0.23240001,2520.6,2520.5,7.51746]
[1727800261584,0.23240001,2520.6,2520.5,8.665954]
[1727800261883,0.23240001,2520.6,2520.5,8.115954]
[1727800262088,0.23240001,2520.6,2520.5,3.0]
[1727800262298,0.23240001,2520.6,2520.5,6.96746]
[1727800262640,0.23240001,2520.6,2520.5,3.0]
[1727800262902,0.23240001,2520.6,2520.2,3.96783]
[1727800262903,1.1077,2520.5,2520.2,3.96783]
[1727800263261,1.1077,2520.5,2519.4,0.3977]
[1727800263262,1.1077,2520.5,2519.9,3.9683]
[1727800263387,1.1077,2520.5,2519.9,0.39683]
[1727800263543,5.17435233,2520.5,2519.8,3.96847]
[1727800263743,20.72489233,2520.5,2520.0,3.96822]
[1727800263952,20.6257,2520.5,2519.9,3.96839]
[1727800264159,20.6257,2520.5,2520.0,3.96824]
[1727800264568,20.6257,2520.5,2519.9,3.0]
[1727800264798,3.96796,2520.2,2519.6,3.96887]
[1727800264997,3.96796,2520.2,2519.3,1.1656]
[1727800264998,3.96841,2519.9,2519.3,3.96926]
[1727800265200,4.06762714,2519.9,2519.3,3.96926]
[1727800265505,19.518,2520.0,2519.8,3.96847]
[1727800265671,19.518,2520.0,2519.9,3.96841]
[1727800265873,1.1279,2520.1,2519.4,3.96918]
[1727800266089,3.96845,2519.9,2519.3,3.0]
[1727800266307,19.61722268,2519.8,2519.3,3.0]
[1727800266458,0.09922268,2519.7,2519.3,3.0]
[1727800266663,19.518,2519.8,2519.5,3.0]
[1727800267005,3.9692,2519.4,2518.8,3.97001]
[1727800267205,19.518,2519.7,2518.6,3.97037]
[1727800267206,1.0956,2519.1,2518.6,3.97037]
[1727800267375,0.09924925,2519.0,2518.6,3.97037]
[1727800267584,0.09925368,2519.0,2518.4,3.9707]
[1727800267987,1.0956,2519.1,2518.8,3.97004]
[1727800268276,19.518,2519.2,2519.0,3.96982]
[1727800268476,19.518,2519.2,2519.0,3.99170617]
[1727800268671,1.0956,2519.4,2519.0,4.02865722]
[1727800268876,1.0956,2519.4,2519.2,3.96949]
[1727800269108,1.0956,2519.4,2519.2,3.96941]
[1727800269476,19.518,2520.2,2519.3,3.96935]
[1727800269477,1.1426,2519.8,2519.3,3.96935]
[1727800269683,1.1426,2519.8,2519.4,3.0]
[1727800270468,1.1426,2519.8,2519.2,3.55]
[1727800270668,3.96836,2520.0,2519.2,4.069]
[1727800270890,0.09922008,2519.9,2519.2,3.0]
[1727800271201,8.03630008,2519.9,2519.2,7.666455]
[1727800271402,0.09922679,2519.8,2519.4,3.0]
[1727800272417,3.9685,2519.9,2519.3,3.96921]
[1727800272724,4.06779558,2519.8,2519.3,3.0]
[1727800272896,0.09922558,2519.8,2519.3,3.0]
[1727800273204,1.0596,2519.7,2519.3,3.96925]
[1727800273422,0.09922682,2519.6,2519.3,3.96925]
[1727800273570,0.09922682,2519.6,2519.2,3.9694]
[1727800273963,0.09922682,2519.6,2519.0,6.96973]
[1727800273964,19.61722682,2519.6,2519.0,6.96973]
[1727800274166,0.09923674,2519.5,2519.0,3.0]
[1727800274374,19.518,2519.6,2519.3,3.96925]
[1727800274896,19.518,2519.6,2519.4,3.96916]
[1727800275093,19.518,2519.6,2519.3,3.96925]
[1727800275318,19.518,2519.6,2519.4,3.96906]
[1727800275529,19.518,2519.6,2519.3,3.96925]
[1727800275748,19.518,2519.6,2519.4,3.96918]
[1727800276027,19.518,2519.6,2519.4,3.96911]
[1727800276229,19.518,2519.6,2519.5,3.96904]
[1727800276728,19.518,2519.6,2519.3,3.96927]
[1727800277091,0.0992273,2519.5,2519.2,3.0]
[1727800277422,0.0992273,2519.5,2518.9,3.96988]
[1727800277423,0.0992273,2519.5,2518.9,7.93979]
[1727800277625,4.0683473,2519.5,2518.9,3.96988]
[1727800278132,4.0683473,2519.5,2519.1,3.96954]
[1727800278133,0.0992273,2519.5,2519.1,3.96954]
[1727800278345,0.0992273,2519.5,2518.8,3.0]
[1727800278346,19.518,2519.6,2519.4,3.9691]
[1727800278547,19.518,2519.6,2519.5,3.96904]
[1727800279598,11.34819,2520.1,2519.3,3.0]
[1727800279599,19.518,2519.9,2519.3,3.0]
[1727800279842,19.518,2519.9,2519.6,3.96885]
[1727800280042,19.518,2519.9,2519.3,6.96923]
[1727800280335,0.09922032,2519.8,2519.4,3.96919]
[1727800280524,0.09922032,2519.8,2519.3,6.96923]
[1727800280721,0.09922032,2519.8,2519.4,3.96919]
[1727800280929,0.09922032,2519.8,2519.3,6.96923]
[1727800281143,1.1223,2519.7,2518.4,1.0681]
[1727800281442,3.96943,2519.3,2518.8,3.97011]
[1727800281655,0.09924722,2519.4,2518.6,3.97039]
[1727800281821,0.09924722,2519.2,2518.8,3.97004]
[1727800282156,0.09924722,2519.2,2518.8,3.97007]
[1727800282321,0.09924722,2519.2,2518.8,3.97006]
[1727800282805,4.06871723,2519.3,2518.8,3.97006]
[1727800283201,4.06871723,2519.3,2518.5,3.0]
[1727800283202,3.9699,2519.0,2518.5,3.97056]
[1727800283408,3.9699,2519.0,2517.4,0.40818244]
[1727800283409,20.7375593,2518.9,2517.8,1.0639]
[1727800283625,3.97055,2518.6,2517.8,3.97161]
[1727800283805,3.97055,2518.6,2517.6,3.97196]
[1727800283806,0.09928062,2518.5,2517.6,3.97196]
[1727800284008,0.09928062,2518.5,2518.1,3.97123]
[1727800284207,0.09928062,2518.5,2517.9,3.97146]
[1727800284505,5.08326,2518.4,2517.9,3.97154]
[1727800284709,0.09928074,2518.3,2517.8,3.97165]
[1727800285021,19.61728074,2518.3,2517.2,3.97266]
[1727800285219,19.61728923,2518.2,2517.1,1.1301]
[1727800285453,0.09928748,2518.1,2517.8,3.97167]
[1727800285745,19.61728762,2518.1,2517.8,3.97162]
[1727800285985,1.1682,2517.9,2517.4,3.97229]
[1727800286134,1.1682,2517.9,2516.5,3.97373]
[1727800286135,0.09930715,2517.8,2516.8,1.1563]
[1727800286335,0.09930715,2517.8,2517.5,3.97207]
[1727800286336,19.518,2517.7,2517.5,3.97207]
[1727800286734,19.518,2517.7,2517.6,3.97203]
[1727800287345,19.518,2517.7,2517.6,6.97203]
[1727800287871,19.518,2517.7,2517.6,8.06644]
[1727800288386,19.518,2517.7,2517.6,6.97203]
[1727800289480,19.518,2517.7,2517.6,3.0]
[1727800289662,19.518,2517.7,2517.6,6.97203]
[1727800291702,19.518,2518.0,2517.7,3.97187]
[1727800292036,19.518,2518.0,2517.7,3.97179]
[1727800292338,19.518,2518.0,2517.8,3.97171]
[1727800292639,19.518,2518.0,2517.4,3.0]
[1727800292640,0.09928828,2517.9,2517.4,10.94449]
[1727800292871,19.518,2518.0,2517.9,3.97156]
[1727800293178,19.518,2518.0,2517.9,6.97156]
[1727800293563,19.518,2518.0,2517.9,3.0]
[1727800294073,19.518,2518.0,2517.9,6.97156]
[1727800296483,19.518,2518.0,2517.9,8.065877]
[1727800296686,19.518,2518.0,2517.9,9.138777]
[1727800297181,19.518,2518.0,2517.9,8.065877]
[1727800297383,1.0985,2518.2,2517.9,3.0]
[1727800297566,1.1977823,2518.2,2517.9,3.0]
[1727800297940,1.1977823,2518.2,2517.8,3.97161]
[1727800298181,1.1977823,2518.2,2517.6,6.97191]
[1727800298386,7.24054053,2518.2,2517.6,3.0]
[1727800298543,1.1977823,2518.2,2517.8,3.97164]
[1727800298875,1.1977823,2518.2,2517.9,3.97146]
[1727800299077,1.1977823,2518.2,2517.8,3.97161]
[1727800299278,1.1977823,2518.2,2517.9,3.97149]
[1727800299580,1.1977823,2518.2,2517.8,3.97161]
[1727800299756,1.1977823,2518.2,2517.9,3.97149]
[1727800299958,1.1977823,2518.2,2517.8,3.97161]
[1727800300153,3.97127,2518.1,2517.6,6.97194]
[1727800300351,2.13763132,2518.2,2517.5,3.0]
[1727800300352,3.97156,2517.9,2517.5,3.0]
[1727800300554,2.03834902,2518.2,2517.0,3.97288]
[1727800300555,1.0767,2517.6,2517.0,3.97288]
[1727800300762,0.09931392,2517.5,2517.2,3.97266]
[1727800301005,0.09931392,2517.5,2517.2,7.94524]
[1727800301204,0.09931392,2517.5,2517.2,3.97258]
[1727800301385,1.01131931,2517.5,2517.1,3.97279]
[1727800301616,1.01131931,2517.5,2517.2,3.97253]
[1727800301791,0.09931392,2517.5,2517.2,3.97253]
[1727800302147,3.97236,2517.4,2517.0,3.97285]
[1727800302349,3.97236,2517.4,2516.8,3.97321]
[1727800302350,0.09932552,2517.3,2516.9,3.97305]
[1727800302507,19.518,2517.3,2517.1,3.97275]
[1727800302850,19.518,2517.3,2517.1,7.94545]
[1727800303016,19.518,2517.3,2517.2,3.97266]
[1727800303583,19.518,2517.3,2517.2,7.767197]
[1727800304541,19.518,2518.1,2517.3,3.0]
[1727800304743,19.518,2518.0,2517.9,3.97156]
[1727800305042,1.1704,2518.3,2517.9,3.97155]
[1727800305043,19.518,2518.2,2517.9,3.97155]
[1727800305251,19.518,2518.2,2518.0,3.97126]
[1727800305447,19.518,2518.2,2516.6,2.0]
[1727800305448,20.6201,2518.1,2516.0,1.21496104]
[1727800305749,2.80684,2518.2,2516.0,1.21496104]